[Event "Qatar Masters 2024"]
[Site "Doha"]
[Date "2024.12.03"]
[Round "1.50"]
[White "Garifullina, Leya"]
[Black "Munkhzul, Turmunkh"]
[Result "1/2-1/2"]
[Annotator "TA"]
[ECO "C43"]
[WhiteElo "2451"]
[BlackElo "2301"]
[PlyCount "103"]
[EventDate "2024.11.24"]
[EventType "swiss"]
[EventCountry "QAT"]
[SourceTitle "playchess.com"]
[Source "ChessBase"]
[SourceQuality "1"]
[TimeControl "40/5400+30:1800+30"]

{[%evp 30,103,0,0,0,-115,-25,-43,0,0,39,0,0,0,0,0,0,0,0,0,0,0,0,0,56,75,58,66,54,53,60,53,72,72,72,61,71,81,85,-81,-83,-82,-13,-12,-12,-14,-24,-46,-11,-18,0,0,0,0,0,0,0,0,0,0,0,0,0,0,0,0,0,0,0,0,0,0,0,0,0,0]} 1. e4 {[%emt 0:00:12]} e5 {[%emt 0:00:21]} 2. Nf3 {[%emt 0:00:08]} Nf6 {[%emt 0:00:16]} 3. d4 {[%emt 0:00:12]} Nxe4 {[%emt 0:00:18]} 4. Bd3 {[%emt 0:00:14]} d5 {[%emt 0:00:13]} 5. Nxe5 {[%emt 0:00:09]} Nd7 {[%emt 0:00:21]} 6. Nc3 {[%emt 0:00:15]} Nxe5 {[%emt 0:00:18]} 7. dxe5 {[%emt 0:00:34]} Nxc3 {[%emt 0:00:15]} 8. bxc3 {[%emt 0:00:06]} Bc5 {[%emt 0:00:29]} 9. O-O {[%emt 0:00:11]} O-O {[%emt 0:00:31]} 10. Re1 {[%emt 0:01:47]} Be6 {[%emt 0:02:24]} 11. Rb1 {[%emt 0:05:01]} Rb8 {[%emt 0:08:31]} 12. Qh5 {[%emt 0:06:18]} g6 {[%emt 0:00:15]} 13. Qh6 {[%emt 0:01:12]} Re8 {[%emt 0:06:37]} 14. Bg5 {[%emt 0:03:05]} Be7 {[%emt 0:06:10]} 15. h4 {[%emt 0:10:44]} Bxg5 {[%emt 0:16:51]} 16. hxg5 {[%emt 0:03:03]} (16. Qxg5 {simplifies} Qxg5 17. hxg5 Kg7 18. f4) 16... c5 {[%emt 0:02:14]} 17. Qh4 {[%emt 0:18:20] [#]} (17. f4 $11 {keeps the balance.}) 17... Qe7 {[%emt 0:02:35]} (17... Qa5 $1 $17 18. Re3 c4 (18... Qxc3 $2 19. Bxg6 fxg6 20. Rxc3 $18) (18... Qxa2 19. Rbe1 $17)) 18. Be2 {[%emt 0:05:36]} Red8 {[%emt 0:04:39]} 19. f4 {[%emt 0:04:35]} d4 {[%emt 0:03:41]} 20. c4 {[%emt 0:01:51]} b5 {[%emt 0:03:33]} 21. cxb5 {[%emt 0:01:01]} c4 {[%emt 0:01:26]} 22. Qf2 {[%emt 0:02:42]} Qa3 {[%emt 0:02:41]} 23. Bf1 {[%emt 0:06:02]} Qc3 {[%emt 0:03:00]} 24. Red1 {[%emt 0:02:00]} Bf5 {[%emt 0:01:29]} 25. Rd2 {[%emt 0:00:11]} Rd5 {[%emt 0:01:08]} 26. a4 {[%emt 0:00:31]} Rbd8 {[%emt 0:01:25]} (26... Rc8 $11) 27. a5 $1 $14 {[%emt 0:02:55]} (27. Rbd1 d3 28. cxd3 Rd4 $15) 27... d3 {[%emt 0:01:47]} 28. cxd3 {[%emt 0:00:05]} Bxd3 {[%emt 0:02:47]} 29. Bxd3 {[%emt 0:00:18]} Rxd3 {[%emt 0:00:11]} 30. Rc2 {[%emt 0:03:28]} Qxa5 {[%emt 0:00:10]} 31. Rxc4 {[%emt 0:00:42]} Rd2 {[%emt 0:02:04]} ({Don't blunder} 31... Rd1+ $2 32. Rxd1 Rxd1+ 33. Kh2 $18) 32. Qf3 {[%emt 0:00:29]} Qb6+ {[%emt 0:01:22]} 33. Kh2 {[%emt 0:01:07]} Qe6 {[%emt 0:01:17]} 34. Rbc1 $2 {[%emt 0:02:07] [#]} (34. Rc6 $16 {and life is bright.} Qa2 35. Rg1) 34... R8d3 $1 $17 {[%emt 0:01:28]} 35. f5 {[%emt 0:07:11]} Qxe5+ {[%emt 0:00:40]} (35... Qxf5 36. Qxf5 gxf5 37. Ra1 $16) (35... gxf5 $17 36. Qf4 Re2) 36. Qf4 $11 {[%emt 0:00:05]} Qxf5 {[%emt 0:02:24]} 37. Qxf5 {[%emt 0:01:21]} gxf5 {[%emt 0:00:06]} 38. Ra1 {[%emt 0:02:29]} Rb3 {[%emt 0:05:59]} 39. Rxa7 {[%emt 0:00:32]} Rxb5 {[%emt 0:02:53]} 40. Rc8+ {[%emt 0:00:21]} Kg7 {[%emt 0:00:04]} 41. Rcc7 {[%emt 0:30:03]} Rbb2 {[%emt 0:30:26]} 42. Rxf7+ {[%emt 0:01:11]} Kg6 {[%emt 0:06:24]} 43. Kh3 {[%emt 0:01:55]} Kxg5 {[%emt 0:00:45]} 44. Rxh7 {[%emt 0:00:33]} Rd6 {[%emt 0:00:44]} 45. Rag7+ {[%emt 0:00:39]} Rg6 {[%emt 0:00:15]} 46. Rxg6+ {[%emt 0:00:59]} Kxg6 {[%emt 0:00:05]} 47. Ra7 {[%emt 0:00:00]} Rb3+ {[%emt 0:00:00]} 48. Kh4 {[%emt 0:00:00]} Rb4+ {[%emt 0:00:00]} 49. Kg3 {[%emt 0:00:00]} Rb3+ {[%emt 0:00:00]} 50. Kh4 $1 {[%emt 0:00:03]} Rb4+ {[%emt 0:00:00]} 51. Kg3 {[%emt 0:00:03]} Rb3+ {[%emt 0:00:00]} 52. Kh4 {[%emt 0:00:03]} 1/2-1/2

[Event "Qatar Masters 2024"]
[Site "Doha"]
[Date "2024.12.03"]
[Round "1.51"]
[White "Jeet, Jain"]
[Black "Zou, Chen"]
[Result "1/2-1/2"]
[Annotator "TA"]
[ECO "B22"]
[WhiteElo "2301"]
[BlackElo "2449"]
[PlyCount "78"]
[EventDate "2024.11.24"]
[EventType "swiss"]
[EventCountry "QAT"]
[SourceTitle "playchess.com"]
[Source "ChessBase"]
[SourceQuality "1"]
[TimeControl "40/5400+30:1800+30"]

{[%evp 16,78,52,47,39,34,84,91,93,83,89,28,29,26,31,16,14,13,8,8,9,9,10,12,14,13,9,12,16,13,19,0,0,0,0,3,13,0,0,0,6,8,8,0,0,0,0,0,0,0,0,0,0,0,0,0,0,0,0,0,0,0,0,0,0]} 1. e4 {[%emt 0:00:05]} c5 {[%emt 0:00:07]} 2. c3 {[%emt 0:00:19]} d5 {[%emt 0:00:16]} 3. exd5 {[%emt 0:00:08]} Qxd5 {[%emt 0:00:04]} 4. d4 {[%emt 0:00:05]} Nf6 {[%emt 0:00:07]} 5. Nf3 {[%emt 0:00:08]} e6 {[%emt 0:00:45]} 6. Na3 {[%emt 0:00:43]} a6 {[%emt 0:01:28]} 7. Nc4 {[%emt 0:00:30]} Nbd7 {[%emt 0:00:23]} 8. Be2 {[%emt 0:00:58]} Be7 {[%emt 0:05:03]} 9. O-O {[%emt 0:01:42]} cxd4 {[%emt 0:07:11]} 10. Nxd4 {[%emt 0:01:45]} O-O {[%emt 0:03:46]} (10... Qc5 $1 $14) 11. b3 $16 {[%emt 0:05:09]} Re8 {[%emt 0:06:04] [#]} 12. Be3 $1 {[%emt 0:22:10]} Qe4 {[%emt 0:03:17]} 13. f3 {[%emt 0:22:07]} (13. f4 $16) 13... Qg6 $11 {[%emt 0:06:44]} 14. f4 {[%emt 0:20:11]} Nd5 {[%emt 0:23:10]} 15. f5 {[%emt 0:00:45]} exf5 {[%emt 0:03:36]} 16. Bh5 $1 {[%emt 0:00:31]} (16. Nxf5 $2 Nxc3 17. Nxe7+ Rxe7 $19) 16... Nxe3 $1 {[%emt 0:00:26]} 17. Nxe3 {[%emt 0:00:29]} Qb6 {[%emt 0:01:37]} 18. Nd5 {[%emt 0:02:45] Against Nf6. Excellent horsemanship.} Qd8 $1 {[%emt 0:01:38]} 19. Nxe7+ {[%emt 0:05:56]} Qxe7 {[%emt 0:01:55]} 20. Nxf5 {[%emt 0:00:23]} ({Reject} 20. Rxf5 g6 21. Rf2 gxh5 $17) 20... Qc5+ {[%emt 0:00:47]} 21. Qd4 {[%emt 0:04:09]} Qxd4+ {[%emt 0:05:06]} 22. Nxd4 {[%emt 0:00:06]} Ne5 {[%emt 0:01:19]} 23. Nf3 {[%emt 0:03:55]} Bg4 {[%emt 0:05:28]} 24. Bxg4 {[%emt 0:00:38]} Nxg4 {[%emt 0:00:05]} 25. Rfe1 {[%emt 0:00:37]} f6 {[%emt 0:02:14]} 26. Rxe8+ {[%emt 0:01:28]} Rxe8 {[%emt 0:00:06][%mdl 4096] Endgame KRN-KRN} 27. h3 {[%emt 0:00:30]} Ne3 {[%emt 0:01:26]} 28. Re1 {[%emt 0:00:36] Strongly threatening Kf2.} Kf7 {[%emt 0:00:11]} 29. Kf2 {[%emt 0:02:58]} Nd5 {[%emt 0:00:48]} 30. Rxe8 {[%emt 0:00:09]} Kxe8 {[%emt 0:00:05] KN-KN} 31. c4 {[%emt 0:00:08]} Nb4 {[%emt 0:00:50]} 32. a3 {[%emt 0:00:12]} Nc2 {[%emt 0:00:16]} 33. Ke2 {[%emt 0:00:39]} Nxa3 {[%emt 0:01:33]} 34. Kd3 {[%emt 0:00:22] Prevents Nc2} Kd7 {[%emt 0:02:15]} 35. Kc3 {[%emt 0:00:41]} b5 {[%emt 0:00:13]} 36. Nd4 {[%emt 0:00:48]} Nb1+ {[%emt 0:07:06]} 37. Kc2 {[%emt 0:00:08]} Na3+ {[%emt 0:00:20]} 38. Kc3 {[%emt 0:00:07]} Nb1+ {[%emt 0:07:43]} 39. Kc2 {[%emt 0:00:02]} Na3+ {[%emt 0:00:03]} 1/2-1/2

[Event "Qatar Masters 2024"]
[Site "Doha"]
[Date "2024.12.03"]
[Round "1.52"]
[White "Aaditya Dhingra"]
[Black "Ajay Santhosh Parvathareddy"]
[Result "1/2-1/2"]
[Annotator "TA"]
[ECO "A13"]
[WhiteElo "2448"]
[BlackElo "2303"]
[PlyCount "93"]
[EventDate "2024.11.24"]
[EventType "swiss"]
[EventCountry "QAT"]
[SourceTitle "playchess.com"]
[Source "ChessBase"]
[SourceQuality "1"]
[TimeControl "40/5400+30:1800+30"]

{[%evp 13,93,46,52,41,41,24,20,32,26,0,0,0,0,0,2,9,82,42,40,24,44,44,28,19,19,0,97,107,79,5,126,131,166,168,194,194,155,152,198,224,432,395,439,436,809,776,998,1508,1431,997,907,379,791,138,143,0,0,0,0,0,78,71,71,0,71,0,0,0,0,0,0,0,0,0,0,0,0,0,0,0,0,0]} 1. Nf3 {[%emt 0:00:21]} d5 {[%emt 0:00:05]} 2. c4 {[%emt 0:00:20]} e6 {[%emt 0:00:21]} 3. g3 {[%emt 0:00:15]} Nf6 {[%emt 0:00:05]} 4. Bg2 {[%emt 0:00:08]} dxc4 {[%emt 0:00:09]} 5. Qa4+ {[%emt 0:00:17]} Nbd7 {[%emt 0:00:05]} 6. Qxc4 {[%emt 0:00:08]} a6 {[%emt 0:00:05]} 7. Qc2 {[%emt 0:00:24]} Rb8 {[%emt 0:01:17]} 8. d4 {[%emt 0:05:50]} b5 {[%emt 0:00:24]} 9. Ne5 {[%emt 0:07:17]} Nxe5 {[%emt 0:00:36]} 10. dxe5 {[%emt 0:00:07]} Nd7 {[%emt 0:00:09]} 11. Bc6 {[%emt 0:08:03] next 0-0 is good for White.} Bb7 {[%emt 0:09:27]} 12. O-O {[%emt 0:05:53]} Bxc6 {[%emt 0:01:28]} 13. Qxc6 {[%emt 0:00:06][%cal Oc1e3]} Rb6 {[%emt 0:00:07]} 14. Qe4 {[%emt 0:00:29]} Nc5 {[%emt 0:02:02]} (14... Be7 $11) 15. Qf3 {[%emt 0:13:05]} Nd7 {[%emt 0:07:23]} 16. Rd1 {[%emt 0:03:06]} Qc8 {[%emt 0:01:24]} 17. Bf4 {[%emt 0:04:28]} Be7 {[%emt 0:04:07]} 18. Qg4 {[%emt 0:04:45]} g5 $1 {[%emt 0:01:34] White must now prevent ...h5.} 19. Be3 $1 {[%emt 0:00:49]} (19. Bxg5 Rg8 20. h4 h6 $19 (20... Nxe5 $2 21. Qh5 $18)) 19... h5 {[%emt 0:01:30]} (19... Nxe5 $11 20. Qh5 Rd6) 20. Qe4 $16 {[%emt 0:04:41]} c5 {[%emt 0:02:56]} 21. b4 {[%emt 0:07:20] White is much more active.} (21. Nd2 $16) 21... Qc7 {[%emt 0:13:34]} (21... Rc6 $11) 22. Nd2 $1 {[%emt 0:06:09]} Nxe5 {[%emt 0:12:05]} 23. bxc5 $1 {[%emt 0:04:57]} Rb8 {[%emt 0:01:50][%cal Of7f5]} 24. Nf3 {[%emt 0:03:22]} Nxf3+ {[%emt 0:03:20]} 25. Qxf3 {[%emt 0:01:11]} Rc8 {[%emt 0:05:57]} (25... f5 $16) 26. c6 $1 $18 {[%emt 0:04:20]} Qxc6 $2 {[%emt 0:02:00]} (26... f5) 27. Rac1 {[%emt 0:00:06]} Qa8 {[%emt 0:00:06]} 28. Rc7 $1 {[%emt 0:08:47]} f5 {[%emt 0:02:53]} (28... O-O $142 29. Qxa8 (29. Rxe7 Qxf3 30. exf3 Rfd8 $18) 29... Rxa8 30. Rxe7 g4) 29. Rdd7 {[%emt 0:04:09]} (29. Rb7 g4 30. Qg2 Bf6 $16) 29... Bd8 {[%emt 0:16:12]} 30. Rb7 {[%emt 0:00:02][%cal Oe3g5] Threatening mate with Bxg5!.} Rc3 {[%emt 0:00:57] [#]} 31. h4 $1 {[%emt 0:02:55][%mdl 512]} Qc8 {[%emt 0:01:23]} 32. hxg5 {[%emt 0:00:51]} (32. Rh7 $142 Rxh7 33. Rxh7) 32... Bc7 $2 {[%emt 0:06:33] [#]} (32... Qxd7 33. Rxd7 Kxd7 34. Qb7+ Bc7 35. Qxa6 (35. g6 Rxe3 36. fxe3 Rg8 $18) 35... Rb8) 33. Rdxc7 $2 {[%emt 0:01:30]} Rxc7 $16 {[%emt 0:00:07]} 34. Rxc7 {[%emt 0:00:38]} ({Only move:} 34. Rb6 $16 O-O 35. Qxh5) 34... Qxc7 $18 {[%emt 0:00:05][%mdl 4096] Endgame KQR-KQB} 35. Qa8+ {[%emt 0:00:27]} Qd8 {[%emt 0:00:06]} 36. Qxa6 {[%emt 0:00:16]} Qd7 {[%emt 0:00:56]} (36... Kf7 $11 {remains equal.}) 37. Qa8+ $16 {[%emt 0:00:47][%mdl 1024] White has strong compensation.} Qd8 {[%emt 0:00:05] [#]} 38. Qc6+ {[%emt 0:00:20]} (38. Qxd8+ Kxd8 39. Bd4 Rg8 $19) ({White should try} 38. Qa7 $1 $16 {[%cal Ra7g7] And now Qg7 would win.} Qd1+ 39. Kg2) 38... Qd7 {[%emt 0:00:04] [#]} (38... Kf7 $11) 39. Qc3 {[%emt 0:00:10]} (39. Qc5 $1 $16) 39... O-O $36 {[%emt 0:03:17][%mdl 2048] Black has the initiative.} 40. f3 {[%emt 0:00:04]} Qd6 {[%emt 0:02:24]} 41. Bf4 {[%emt 0:30:56]} Qd1+ {[%emt 0:31:20]} 42. Kf2 {[%emt 0:00:17]} Qh1 {[%emt 0:00:00]} 43. Qe5 {[%emt 0:00:00]} Qh2+ {[%emt 0:00:00]} 44. Kf1 {[%emt 0:00:00]} Qh1+ {[%emt 0:00:00]} 45. Kf2 {[%emt 0:00:00]} Qh2+ {[%emt 0:00:00]} 46. Kf1 {[%emt 0:00:00]} Qh1+ {[%emt 0:00:00]} 47. Kf2 {[%emt 0:00:00]} 1/2-1/2

[Event "Qatar Masters 2024"]
[Site "Doha"]
[Date "2024.12.03"]
[Round "1.53"]
[White "Manish Anto Cristiano F"]
[Black "Nigmatov, Ortik"]
[Result "1/2-1/2"]
[Annotator "RC"]
[ECO "C60"]
[WhiteElo "2296"]
[BlackElo "2447"]
[PlyCount "207"]
[EventDate "2024.11.24"]
[EventType "swiss"]
[EventCountry "QAT"]
[SourceTitle "playchess.com"]
[Source "ChessBase"]
[SourceQuality "1"]
[TimeControl "40/5400+30:1800+30"]

1. e4 {[%emt 0:00:12]} e5 {[%emt 0:00:10]} 2. Nf3 {[%emt 0:00:08]} Nc6 {[%emt 0:00:05]} 3. Bb5 {[%emt 0:00:16]} Nge7 {[%emt 0:00:06]} 4. c3 {[%emt 0:00:47]} d5 {[%emt 0:01:30]} 5. Nxe5 {[%emt 0:02:32]} dxe4 {[%emt 0:00:14]} 6. d4 {[%emt 0:02:00]} a6 {[%emt 0:04:34]} 7. Bxc6+ {[%emt 0:05:22]} Nxc6 {[%emt 0:01:45]} 8. Nxc6 {[%emt 0:04:54]} bxc6 {[%emt 0:00:47]} 9. Qe2 {[%emt 0:01:08]} f5 {[%emt 0:05:03]} 10. O-O {[%emt 0:07:29]} Bd6 {[%emt 0:02:14]} 11. f3 {[%emt 0:04:51]} O-O {[%emt 0:04:17]} 12. Nd2 {[%emt 0:05:41]} Qh4 {[%emt 0:12:27]} 13. g3 {[%emt 0:02:50]} Qh5 {[%emt 0:00:06]} 14. Qc4+ {[%emt 0:21:09]} Kh8 {[%emt 0:00:36]} 15. fxe4 {[%emt 0:01:36]} fxe4 {[%emt 0:00:08]} 16. Rxf8+ {[%emt 0:03:05]} Bxf8 {[%emt 0:00:08]} 17. Nxe4 {[%emt 0:03:03]} Bf5 {[%emt 0:22:16]} 18. Ng5 {[%emt 0:02:10]} Bg6 {[%emt 0:07:24]} 19. Bf4 {[%emt 0:02:44]} Re8 {[%emt 0:05:16]} 20. Rf1 {[%emt 0:02:52]} c5 {[%emt 0:15:02]} 21. h4 {[%emt 0:08:58]} h6 {[%emt 0:01:38]} 22. Nf3 {[%emt 0:00:54]} cxd4 {[%emt 0:05:22]} 23. cxd4 {[%emt 0:01:13]} Bf7 {[%emt 0:04:11]} 24. Qxc7 {[%emt 0:02:05]} Bd5 {[%emt 0:01:06]} 25. Qd7 {[%emt 0:03:46]} Re2 {[%emt 0:03:38]} 26. g4 {[%emt 0:01:51]} Qg6 {[%emt 0:00:01]} 27. Bg3 {[%emt 0:04:12]} Be4 {[%emt 0:03:21]} 28. Qc8 {[%emt 0:01:38]} Kh7 {[%emt 0:00:19]} 29. h5 {[%emt 0:01:20]} Qf6 {[%emt 0:00:31]} 30. g5 {[%emt 0:02:53]} hxg5 {[%emt 0:00:34]} 31. Qg4 {[%emt 0:00:47]} Be7 {[%emt 0:00:26]} 32. Be5 {[%emt 0:00:26]} Qf5 {[%emt 0:00:43]} 33. Qxf5+ {[%emt 0:00:48]} Bxf5 {[%emt 0:00:01]} 34. Nxg5+ {[%emt 0:00:05]} Bxg5 {[%emt 0:00:15]} 35. Rxf5 {[%emt 0:00:05]} Be3+ {[%emt 0:00:13]} 36. Kf1 {[%emt 0:00:22]} Rxb2 {[%emt 0:01:06]} 37. Rf3 {[%emt 0:00:33]} Bxd4 {[%emt 0:00:46]} 38. Bxd4 {[%emt 0:00:36]} Rxa2 {[%emt 0:00:01]} 39. Be3 {[%emt 0:00:58]} Ra5 {[%emt 0:00:24]} 40. Rh3 {[%emt 0:00:20]} g6 {[%emt 0:01:05]} 41. h6 {[%emt 0:30:22]} Rh5 {[%emt 0:05:00]} 42. Rg3 {[%emt 0:00:00]} a5 {[%emt 0:00:22]} 43. Ke2 {[%emt 0:00:00]} a4 {[%emt 0:01:26]} 44. Kd3 {[%emt 0:00:00]} a3 {[%emt 0:01:07]} 45. Kc3 {[%emt 0:00:00]} Rb5 {[%emt 0:00:53]} 46. Rg2 {[%emt 0:00:00]} Re5 {[%emt 0:03:10]} 47. Bd2 {[%emt 0:00:00]} Rb5 {[%emt 0:01:10]} 48. Bf4 {[%emt 0:00:00]} a2 {[%emt 0:02:51]} 49. Rxa2 {[%emt 0:00:00]} g5 {[%emt 0:00:04]} 50. Kc4 {[%emt 0:00:00]} Rf5 {[%emt 0:00:10]} 51. Be3 {[%emt 0:00:00]} Kxh6 {[%emt 0:00:05]} 52. Kd4 {[%emt 0:00:00]} Rb5 {[%emt 0:02:01]} 53. Ke4 {[%emt 0:00:00]} Kg6 {[%emt 0:01:36]} 54. Kf3 {[%emt 0:00:00]} Kh5 {[%emt 0:00:40]} 55. Bd4 {[%emt 0:00:12]} Rb3+ {[%emt 0:00:37]} 56. Ke4 {[%emt 0:00:16]} Kg4 {[%emt 0:00:10]} 57. Ra1 {[%emt 0:00:29]} Kh5 {[%emt 0:05:18]} 58. Be5 {[%emt 0:01:27]} Kg6 {[%emt 0:00:11]} 59. Ra6+ {[%emt 0:01:23]} Kh5 {[%emt 0:00:07]} 60. Ra5 {[%emt 0:00:04]} Rb1 {[%emt 0:01:30]} 61. Bf6 {[%emt 0:01:15]} Re1+ {[%emt 0:00:38]} 62. Kd3 {[%emt 0:00:52]} Rg1 {[%emt 0:00:06]} 63. Bd4 {[%emt 0:00:05]} Rg4 {[%emt 0:05:09]} 64. Be3 {[%emt 0:00:16]} Kg6 {[%emt 0:00:37]} 65. Ke2 {[%emt 0:00:11]} Rb4 {[%emt 0:00:22]} 66. Rxg5+ {[%emt 0:00:07]} Kf6 {[%emt 0:00:05]} 67. Ra5 {[%emt 0:00:08]} Ke6 {[%emt 0:00:11]} 68. Kd3 {[%emt 0:00:05]} Rb1 {[%emt 0:00:53]} 69. Ke4 {[%emt 0:00:08]} Re1 {[%emt 0:00:13]} 70. Ra6+ {[%emt 0:00:06]} Kd7 {[%emt 0:00:04]} 71. Kd4 {[%emt 0:00:21]} Ke7 {[%emt 0:00:12]} 72. Bg5+ {[%emt 0:00:43]} Kf7 {[%emt 0:01:53]} 73. Kd5 {[%emt 0:00:06]} Rd1+ {[%emt 0:01:30]} 74. Ke5 {[%emt 0:00:19]} Rb1 {[%emt 0:00:50]} 75. Rf6+ {[%emt 0:01:01]} Kg7 {[%emt 0:00:01]} 76. Bh6+ {[%emt 0:00:09]} Kh7 {[%emt 0:00:06]} 77. Bf4 {[%emt 0:00:07]} Rb5+ {[%emt 0:01:04]} 78. Ke6 {[%emt 0:00:11]} Kg7 {[%emt 0:01:22]} 79. Bd6 {[%emt 0:00:34]} Rb6 {[%emt 0:00:44]} 80. Rf1 {[%emt 0:03:35]} Kg6 {[%emt 0:00:02]} 81. Rg1+ {[%emt 0:00:08]} Kh6 {[%emt 0:00:04]} 82. Ke5 {[%emt 0:00:09]} Ra6 {[%emt 0:00:32]} 83. Be7 {[%emt 0:00:49]} Rg6 {[%emt 0:01:24]} 84. Rh1+ {[%emt 0:00:06]} Kg7 {[%emt 0:00:04]} 85. Kf5 {[%emt 0:00:04]} Rb6 {[%emt 0:00:50]} 86. Bd8 {[%emt 0:00:46]} Rc6 {[%emt 0:00:43]} 87. Rd1 {[%emt 0:01:07]} Rc5+ {[%emt 0:00:17]} 88. Ke6 {[%emt 0:00:10]} Rc6+ {[%emt 0:00:05]} 89. Kd7 {[%emt 0:00:04]} Ra6 {[%emt 0:01:00]} 90. Be7 {[%emt 0:00:18]} Kg6 {[%emt 0:00:11]} 91. Rf1 {[%emt 0:00:41]} Rb6 {[%emt 0:00:33]} 92. Bd6 {[%emt 0:00:15]} Ra6 {[%emt 0:00:11]} 93. Ke6 {[%emt 0:00:07]} Rb6 {[%emt 0:00:05]} 94. Rg1+ {[%emt 0:00:07]} Kh6 {[%emt 0:00:04]} 95. Kd5 {[%emt 0:02:02]} Ra6 {[%emt 0:00:20]} 96. Be5 {[%emt 0:00:33]} Rg6 {[%emt 0:01:25]} 97. Rh1+ {[%emt 0:00:05]} Kg5 {[%emt 0:00:03]} 98. Ke4 {[%emt 0:00:06]} Kg4 {[%emt 0:00:12]} 99. Ra1 {[%emt 0:00:33]} Kh3 {[%emt 0:01:44]} 100. Kf5 {[%emt 0:00:27]} Rg8 {[%emt 0:02:50]} 101. Ra2 {[%emt 0:00:12]} Rg5+ {[%emt 0:01:07]} 102. Ke4 {[%emt 0:00:47]} Rg6 {[%emt 0:01:21]} 103. Kf3 {[%emt 0:00:28]} Rg3+ {[%emt 0:00:05]} 104. Bxg3 {[%emt 0:00:08]} 1/2-1/2

[Event "Qatar Masters 2024"]
[Site "Doha"]
[Date "2024.12.03"]
[Round "1.54"]
[White "Shyaam Nikhil P"]
[Black "Vivaan Vishal Shah"]
[Result "1/2-1/2"]
[Annotator "TA"]
[ECO "E64"]
[WhiteElo "2445"]
[BlackElo "2296"]
[PlyCount "82"]
[EventDate "2024.11.24"]
[EventType "swiss"]
[EventCountry "QAT"]
[SourceTitle "playchess.com"]
[Source "ChessBase"]
[SourceQuality "1"]
[TimeControl "40/5400+30:1800+30"]

{[%evp 15,82,29,19,21,28,-1,-6,-6,-19,-16,-7,-15,-7,-4,0,-14,0,-10,-8,0,-15,-2,18,13,37,31,42,52,68,50,54,42,79,68,69,75,151,175,145,126,152,138,138,152,141,145,165,150,150,102,273,51,256,238,216,131,222,199,221,227,185,0,0,0,0,0,0,0,0]} 1. Nf3 {[%emt 0:02:03]} Nf6 {[%emt 0:00:10]} 2. c4 {[%emt 0:00:29]} g6 {[%emt 0:00:09]} 3. Nc3 {[%emt 0:00:06]} Bg7 {[%emt 0:00:05]} 4. g3 {[%emt 0:01:50]} O-O {[%emt 0:00:14]} 5. Bg2 {[%emt 0:00:04]} d6 {[%emt 0:00:09]} 6. d4 {[%emt 0:02:11]} c5 {[%emt 0:00:07]} 7. dxc5 {[%emt 0:05:49]} dxc5 {[%emt 0:00:12]} 8. Qxd8 {[%emt 0:01:29]} Rxd8 {[%emt 0:00:50]} 9. Be3 {[%emt 0:00:08]} Na6 {[%emt 0:09:35]} 10. h3 {[%emt 0:02:50]} Ne8 {[%emt 0:06:10][%cal Bf6e8,Be8d6,Bd6e4][%mdl 32]} 11. Rc1 {[%emt 0:01:53]} Nd6 {[%emt 0:09:52]} 12. b3 {[%emt 0:00:09]} Bd7 {[%emt 0:01:52]} (12... b6 $5) 13. O-O {[%emt 0:10:00]} Bc6 {[%emt 0:00:32]} 14. g4 {[%emt 0:04:22]} Ne4 {[%emt 0:03:12]} 15. Nb5 {[%emt 0:06:47]} Nb4 {[%emt 0:16:31]} 16. a3 {[%emt 0:04:08] [#]} Nd5 $1 {[%emt 0:03:18]} 17. cxd5 {[%emt 0:00:28]} Bxb5 {[%emt 0:00:10]} 18. Ne5 {[%emt 0:00:56]} Nd6 {[%emt 0:08:24]} 19. f4 {[%emt 0:01:35]} b6 {[%emt 0:01:31]} (19... Bxe2 20. Rfe1 Ba6 21. Bxc5 $16 (21. Rxc5 h6 $16)) 20. Rc2 {[%emt 0:01:24]} f6 {[%emt 0:02:43]} 21. Nc6 {[%emt 0:06:59]} Re8 {[%emt 0:01:24]} 22. f5 {[%emt 0:04:48]} gxf5 {[%emt 0:10:11]} 23. gxf5 {[%emt 0:01:48]} Ba6 {[%emt 0:01:38]} 24. b4 {[%emt 0:03:15]} c4 {[%emt 0:07:46]} 25. Bc1 {[%emt 0:13:15] White is much more active.} Bc8 {[%emt 0:06:09]} (25... Bb5 $142) 26. e4 $16 {[%emt 0:03:40]} Bd7 {[%emt 0:00:30]} 27. a4 {[%emt 0:03:37]} a6 {[%emt 0:01:50][%cal Ba7a6,Ba6b5][%mdl 32]} 28. Bf4 {[%emt 0:00:38]} Bxc6 {[%emt 0:01:46]} 29. dxc6 {[%emt 0:00:07]} b5 {[%emt 0:00:16]} 30. Rd1 {[%emt 0:04:26]} Rac8 {[%emt 0:03:19]} 31. axb5 {[%emt 0:04:24]} axb5 {[%emt 0:00:20]} 32. Ra2 {[%emt 0:03:59]} (32. Bxd6 exd6 33. h4 (33. Rxd6 Bf8 $11) 33... Kh8 $11 (33... Rxc6 34. e5 $14)) (32. Bf3) 32... Nf7 $2 {[%emt 0:01:40]} (32... Rc7 $16) 33. Ra6 $2 {[%emt 0:01:23]} (33. c7 $18) 33... Ne5 $2 {[%emt 0:02:06] Dodges Rd7} ({Black should try} 33... e5 $1 $14 34. Be3 Bf8) 34. Bxe5 $18 {[%emt 0:00:37]} fxe5 {[%emt 0:00:07]} 35. Rd5 {[%emt 0:00:11]} e6 {[%emt 0:00:55]} (35... Red8 $16 {is a better defense.} 36. Rxb5 (36. Rxd8+ Rxd8 37. c7 Rc8 $18) 36... Rd4) 36. Rxb5 {[%emt 0:01:06]} Bh6 {[%emt 0:01:01]} 37. Kf2 {[%emt 0:01:36] Hoping for Rc5.} (37. Rxe5 c3 38. Ra2 (38. fxe6 $2 c2 $19) (38. Rxe6 $2 Rxe6 39. fxe6 c2 $19) 38... Rxc6 $15) 37... Red8 {[%emt 0:00:27]} 38. Ra2 $2 {[%emt 0:03:43]} ({Worse is} 38. fxe6 Rd2+ 39. Kg3 Bf4+ 40. Kf3 Rd3+ 41. Ke2 Rd2+ 42. Kf3 Rd3+ 43. Ke2 Rd2+ 44. Kf3 $11) ({White should try} 38. Bf1 $18 Rd2+ 39. Be2) 38... Rxc6 $11 {[%emt 0:00:43]} 39. Rc5 {[%emt 0:00:10]} Rxc5 {[%emt 0:01:18]} 40. bxc5 {[%emt 0:00:06]} Rc8 {[%emt 0:00:39]} 41. fxe6 {[%emt 0:30:44]} Bf8 {[%emt 0:30:25]} 1/2-1/2